{"text_format":"2","workbook":"xlsx","n_sheets":4,"sheets":["Eingabe","Quittung","Daten","Copyright"],"not_rendered":{"charts":0,"images":11,"macros":1,"external_links":0,"defined_names":12,"comments":0,"pivot_tables":0},"unopened":[],"bounds":{"document_bytes":16777216,"sheet_cells":100000,"run_cost":"one","rows_first":2000,"rows_last":500,"rows_between":2000,"halvings":0,"cell_chars":16384,"cell_head_chars":4096},"cells_cut":0,"cells_raw":0,"read":"whole","date_system":"1900"}

{"sheet":"Eingabe","index":0,"n_rows":22,"n_cols":13,"rows_kept":22,"cut":false,"hidden":false,"merged":[[16,3,17,11],[22,3,23,11],[19,3,20,11],[13,4,14,10]]}
[]
[null,"Excel-Inside Solutions"]
[null,"xls-Quittung         [Eingabe]"]
[]
[]
[]
[]
[]
[{"$nulls":12},"Quittung - DEMO-Version"]
[{"$nulls":7},"Netto EUR"]
[{"$nulls":7},"+",0.19,"MwSt / EUR",{"$f":"IF(netto<>\"\",netto*ust_satz,\"\")","v":""}]
[null,null,null,"Lfd-Nr:",{"$f":"Daten!C6","v":1},null,null,"Gesamt EUR",null,null,{"$f":"IF(netto<>\"\",K10+K11,\"\")","v":""}]
[]
[null,null,null,"EUR in",{"$f":"IF(netto<>\"\",inworten(brutto),\"\")","v":""}]
[null,null,null,"Worten"]
[null,null,null,"von"]
[]
[]
[null,null,null,"für"]
[]
[]
[null,null,null,"Ort / Datum"]

{"sheet":"Quittung","index":1,"n_rows":58,"n_cols":13,"rows_kept":58,"cut":false,"hidden":false,"merged":[[55,3,56,11],[45,4,46,10],[48,3,49,11],[51,3,52,11],[13,4,14,10],[16,3,17,11],[23,3,24,11],[19,3,20,11]]}
[]
[null,"Excel-Inside Solutions"]
[null,"xls-Quittung         [Druckversion]"]
[]
[]
[]
[]
[]
[{"$nulls":12},"Quittung"]
[{"$nulls":7},"Netto EUR",null,null,{"$f":"IF(netto<>\"\",netto,\"\")","v":""}]
[{"$nulls":7},"+",{"$f":"IF(ust_satz<>\"\",ust_satz,\"\")","v":0.19},"MwSt / EUR",{"$f":"IF(Eingabe!K11<>\"\",Eingabe!K11,\"\")","v":""}]
[null,null,null,"Lfd-Nr:",{"$f":"nr","v":1},null,null,"Gesamt EUR",null,null,{"$f":"IF(netto<>\"\",K10+K11,\"\")","v":""}]
[]
[null,null,null,"EUR in",{"$f":"IF(zahlwort<>\"\",zahlwort,\"\")","v":""}]
[null,null,null,"Worten"]
[null,null,null,"von"]
[null,null,null,{"$f":"IF(von<>\"\",von,\"\")","v":""}]
[]
[null,null,null,"für"]
[null,null,null,{"$f":"IF(fuer<>\"\",fuer,\"\")","v":""}]
[]
[{"$nulls":11},"Betrag dankend erhalten."]
[null,null,null,"Ort / Datum"]
[null,null,null,{"$f":"IF(ort<>\"\",ort,\"\")","v":""}]
[]
[null,null,null,"Buchungsvermerk",{"$nulls":4},"Stempel / Unterschrift des Empfängers"]
{"$rows_empty":11}
[null,null,"Durchschlag"]
[]
[]
[{"$nulls":12},"Quittung"]
[{"$nulls":7},"Netto EUR",null,null,{"$f":"IF(netto<>\"\",netto,\"\")","v":""}]
[{"$nulls":7},"+",{"$f":"IF(ust_satz<>\"\",ust_satz,\"\")","v":0.19},"MwSt / EUR",{"$f":"IF(Eingabe!K11<>\"\",Eingabe!K11,\"\")","v":""}]
[null,null,null,"Lfd-Nr:",{"$f":"nr","v":1},null,null,"Gesamt EUR",null,null,{"$f":"IF(netto<>\"\",K42+K43,\"\")","v":""}]
[]
[null,null,null,"EUR in",{"$f":"IF(zahlwort<>\"\",zahlwort,\"\")","v":""}]
[null,null,null,"Worten"]
[null,null,null,"von"]
[null,null,null,{"$f":"IF(von<>\"\",von,\"\")","v":""}]
[]
[null,null,null,"für"]
[null,null,null,{"$f":"IF(fuer<>\"\",fuer,\"\")","v":""}]
[]
[{"$nulls":11},"Betrag dankend erhalten."]
[null,null,null,"Ort / Datum"]
[null,null,null,{"$f":"IF(ort<>\"\",ort,\"\")","v":""}]
[]
[null,null,null,"Buchungsvermerk",{"$nulls":4},"Stempel / Unterschrift des Empfängers"]

{"sheet":"Daten","index":2,"n_rows":9,"n_cols":9,"rows_kept":9,"cut":false,"hidden":false,"merged":[]}
[]
[null,"Excel-Inside Solutions"]
[null,"xls-Quittung         [Quittungsübersicht]"]
[]
[]
[null,"lfd.-Nr.",1,null,null,0]
[]
[]
[null,"lfd-Nr.","Netto EUR","Ust %","Ust €","Gesamt EUR","von","für","Ort, Datum"]

{"sheet":"Copyright","index":3,"n_rows":16,"n_cols":4,"rows_kept":16,"cut":false,"hidden":false,"merged":[]}
[]
[null,"Excel-Inside Solutions"]
[null,"xls-Quittung         [Copyright]"]
[]
[null,"Version",":","1.00 · 130530"]
[]
[null,"Contact",":","Alois Eckl"]
[null,null,null,"Grabbestraße 25"]
[null,null,null,"90427 Nürnberg"]
[null,null,null,"Germany"]
[]
[null,"Mail",":","alois.eckl@excel-inside.de"]
[null,"Web",":","www.excel-inside.de"]
[]
[]
[null,"Copyright",":","© 2017 by Excel-Inside Solutions - All rights reserved"]